[Event "Titled Tuesday Blitz March 08 Early 2022"]
[White "Yuan, Qingyu"]
[Black "Tabatabaei, M. Amin"]
[WhiteFideId "8609772"]
[BlackFideId "12521213"]
[WhiteElo "2359"]
[BlackElo "2544"]
[Result "1-0"]
[Round "10"]
[TimeControl "180+1"]
[Date "2022.03.08"]
[WhiteClock "0:00:16"]
[BlackClock "0:00:28"]

1. e4 {[%clk 0:03:00]}  c6 {[%clk 0:02:54]} 2. Nf3 {[%clk 0:03:00]}  d5 {[%clk 0:02:55]} 3. Nc3 {[%clk 0:03:00]}  Nf6 {[%clk 0:02:54]} 4. e5 {[%clk 0:02:57]}  Ne4 {[%clk 0:02:54]} 5. d4 {[%clk 0:02:44]}  Nxc3 {[%clk 0:02:52]} 6. bxc3 {[%clk 0:02:45]}  Bg4 {[%clk 0:02:53]} 7. h3 {[%clk 0:02:43]}  Bh5 {[%clk 0:02:53]} 8. e6 {[%clk 0:02:42]}  fxe6 {[%clk 0:02:53]} 9. g4 {[%clk 0:02:42]}  Bg6 {[%clk 0:02:53]} 10. Ne5 {[%clk 0:02:42]}  Nd7 {[%clk 0:02:54]} 11. Nxg6 {[%clk 0:02:36]}  hxg6 {[%clk 0:02:55]} 12. Bd3 {[%clk 0:02:33]}  Qa5 {[%clk 0:02:56]} 13. Bxg6+ {[%clk 0:02:32]}  Kd8 {[%clk 0:02:56]} 14. Bd2 {[%clk 0:02:29]}  e5 {[%clk 0:02:56]} 15. c4 {[%clk 0:02:20]}  Qa4 {[%clk 0:02:56]} 16. cxd5 {[%clk 0:02:12]}  cxd5 {[%clk 0:02:57]} 17. c3 {[%clk 0:01:39]}  Qxd1+ {[%clk 0:02:55]} 18. Rxd1 {[%clk 0:01:39]}  e4 {[%clk 0:02:53]} 19. c4 {[%clk 0:01:16]}  e6 {[%clk 0:02:39]} 20. cxd5 {[%clk 0:01:16]}  exd5 {[%clk 0:02:40]} 21. Bf7 {[%clk 0:01:16]}  Nf6 {[%clk 0:02:40]} 22. Bg5 {[%clk 0:01:11]}  Kd7 {[%clk 0:02:28]} 23. Bxf6 {[%clk 0:01:10]}  gxf6 {[%clk 0:02:29]} 24. Bxd5 {[%clk 0:01:11]}  Re8 {[%clk 0:02:30]} 25. Bxb7 {[%clk 0:01:08]}  e3 {[%clk 0:02:30]} 26. Rd3 {[%clk 0:00:57]}  Rb8 {[%clk 0:02:24]} 27. Rb3 {[%clk 0:00:55]}  exf2+ {[%clk 0:02:21]} 28. Kxf2 {[%clk 0:00:54]}  Bd6 {[%clk 0:02:20]} 29. Rc1 {[%clk 0:00:51]}  a5 {[%clk 0:02:15]} 30. Bc6+ {[%clk 0:00:47]}  Ke7 {[%clk 0:02:14]} 31. Re1+ {[%clk 0:00:47]}  Kf7 {[%clk 0:02:07]} 32. Bd5+ {[%clk 0:00:43]}  Kg7 {[%clk 0:02:05]} 33. Kg2 {[%clk 0:00:42]}  a4 {[%clk 0:02:05]} 34. Rxb8 {[%clk 0:00:39]}  Rxb8 {[%clk 0:02:06]} 35. Re6 {[%clk 0:00:38]}  Rb2+ {[%clk 0:01:58]} 36. Kf3 {[%clk 0:00:38]}  Bf8 {[%clk 0:01:58]} 37. Ra6 {[%clk 0:00:32]}  a3 {[%clk 0:01:57]} 38. Ra7+ {[%clk 0:00:31]}  Kh6 {[%clk 0:01:55]} 39. h4 {[%clk 0:00:27]}  Rh2 {[%clk 0:01:49]} 40. Be4 {[%clk 0:00:20]}  f5 {[%clk 0:01:16]} 41. Bxf5 {[%clk 0:00:20]}  Rxh4 {[%clk 0:01:17]} 42. Rh7+ {[%clk 0:00:20]}  Kg5 {[%clk 0:01:17]} 43. Rxh4 {[%clk 0:00:20]}  Kxh4 {[%clk 0:01:18]} 44. Ke4 {[%clk 0:00:20]}  Kg5 {[%clk 0:01:16]} 45. Ke5 {[%clk 0:00:21]}  Bg7+ {[%clk 0:01:16]} 46. Kd5 {[%clk 0:00:21]}  Kf6 {[%clk 0:01:10]} 47. Kc5 {[%clk 0:00:21]}  Bh6 {[%clk 0:00:52]} 48. d5 {[%clk 0:00:20]}  Ke7 {[%clk 0:00:51]} 49. d6+ {[%clk 0:00:20]}  Kd8 {[%clk 0:00:51]} 50. Kd5 {[%clk 0:00:20]}  Bf4 {[%clk 0:00:37]} 51. Ke6 {[%clk 0:00:21]}  Ke8 {[%clk 0:00:38]} 52. d7+ {[%clk 0:00:21]}  Kd8 {[%clk 0:00:38]} 53. Kf6 {[%clk 0:00:20]}  Bd6 {[%clk 0:00:33]} 54. g5 {[%clk 0:00:17]}  Be7+ {[%clk 0:00:34]} 55. Kg6 {[%clk 0:00:17]}  Kc7 {[%clk 0:00:30]} 56. Kh6 {[%clk 0:00:17]}  Kd6 {[%clk 0:00:27]} 57. g6 {[%clk 0:00:18]}  Ke5 {[%clk 0:00:28]} 58. Bh3 {[%clk 0:00:16]} 1-0


[Site "https://www.chess.com"]

[Event "Titled Tuesday Blitz March 08 Early 2022"]
[White "Zhu, Jiner"]
[Black "Hess, Max"]
[WhiteFideId "8608059"]
[BlackFideId "24656666"]
[WhiteElo "2281"]
[BlackElo "2276"]
[Result "1-0"]
[Round "10"]
[TimeControl "180+1"]
[Date "2022.03.08"]
[WhiteClock "0:00:18"]
[BlackClock "0:00:01"]

1. e4 {[%clk 0:03:00]}  c6 {[%clk 0:02:59]} 2. d4 {[%clk 0:03:00]}  d5 {[%clk 0:03:00]} 3. e5 {[%clk 0:03:01]}  c5 {[%clk 0:03:00]} 4. Nf3 {[%clk 0:03:00]}  cxd4 {[%clk 0:03:00]} 5. Nxd4 {[%clk 0:02:59]}  Nc6 {[%clk 0:02:58]} 6. c4 {[%clk 0:02:57]}  e6 {[%clk 0:02:42]} 7. Nc3 {[%clk 0:02:55]}  Bb4 {[%clk 0:02:39]} 8. Nxc6 {[%clk 0:02:55]}  bxc6 {[%clk 0:02:37]} 9. Be2 {[%clk 0:02:40]}  d4 {[%clk 0:02:20]} 10. a3 {[%clk 0:02:40]}  Ba5 {[%clk 0:02:17]} 11. b4 {[%clk 0:02:32]}  dxc3 {[%clk 0:02:17]} 12. bxa5 {[%clk 0:02:32]}  Qxa5 {[%clk 0:02:12]} 13. O-O {[%clk 0:02:28]}  Ne7 {[%clk 0:02:07]} 14. Qb3 {[%clk 0:01:46]}  O-O {[%clk 0:02:03]} 15. Qb4 {[%clk 0:01:39]}  Qc7 {[%clk 0:01:48]} 16. Qxc3 {[%clk 0:01:39]}  Ng6 {[%clk 0:01:49]} 17. Be3 {[%clk 0:01:36]}  c5 {[%clk 0:01:42]} 18. Rab1 {[%clk 0:01:17]}  Bb7 {[%clk 0:01:35]} 19. Rb5 {[%clk 0:01:14]}  Rfc8 {[%clk 0:01:00]} 20. Rxc5 {[%clk 0:01:14]}  Qe7 {[%clk 0:00:56]} 21. Rxc8+ {[%clk 0:01:12]}  Rxc8 {[%clk 0:00:56]} 22. f3 {[%clk 0:01:06]}  Qc7 {[%clk 0:00:48]} 23. Rb1 {[%clk 0:01:01]}  Bc6 {[%clk 0:00:38]} 24. Kh1 {[%clk 0:00:51]}  h6 {[%clk 0:00:29]} 25. Bf1 {[%clk 0:00:44]}  Qxe5 {[%clk 0:00:17]} 26. Qxe5 {[%clk 0:00:43]}  Nxe5 {[%clk 0:00:17]} 27. Bxa7 {[%clk 0:00:44]}  Ra8 {[%clk 0:00:15]} 28. Bd4 {[%clk 0:00:42]}  Nd7 {[%clk 0:00:14]} 29. Rb3 {[%clk 0:00:39]}  e5 {[%clk 0:00:13]} 30. Be3 {[%clk 0:00:39]}  Kf8 {[%clk 0:00:13]} 31. c5 {[%clk 0:00:37]}  Ke7 {[%clk 0:00:13]} 32. Kg1 {[%clk 0:00:37]}  Ke6 {[%clk 0:00:13]} 33. Kf2 {[%clk 0:00:35]}  Kd5 {[%clk 0:00:12]} 34. Rd3+ {[%clk 0:00:34]}  Ke6 {[%clk 0:00:13]} 35. Rb3 {[%clk 0:00:33]}  f6 {[%clk 0:00:10]} 36. Bc4+ {[%clk 0:00:27]}  Bd5 {[%clk 0:00:08]} 37. Bxd5+ {[%clk 0:00:27]}  Kxd5 {[%clk 0:00:09]} 38. Rd3+ {[%clk 0:00:27]}  Kc6 {[%clk 0:00:08]} 39. Kg3 {[%clk 0:00:24]}  Ra4 {[%clk 0:00:08]} 40. Rd6+ {[%clk 0:00:22]}  Kc7 {[%clk 0:00:08]} 41. Rd3 {[%clk 0:00:22]}  h5 {[%clk 0:00:08]} 42. h4 {[%clk 0:00:20]}  Kc6 {[%clk 0:00:07]} 43. Rd6+ {[%clk 0:00:20]}  Kc7 {[%clk 0:00:07]} 44. Rd3 {[%clk 0:00:20]}  Kc6 {[%clk 0:00:07]} 45. Bf2 {[%clk 0:00:19]}  Rc4 {[%clk 0:00:04]} 46. Rd6+ {[%clk 0:00:19]}  Kc7 {[%clk 0:00:04]} 47. Re6 {[%clk 0:00:20]}  Kd8 {[%clk 0:00:03]} 48. c6 {[%clk 0:00:19]}  Nb8 {[%clk 0:00:03]} 49. Bb6+ {[%clk 0:00:17]}  Kc8 {[%clk 0:00:01]} 50. Re8# {[%clk 0:00:18]} 1-0


[Site "https://www.chess.com"]

[Event "Titled Tuesday Blitz March 08 Early 2022"]
[White "Abarca Gonzalez, Nicolas"]
[Black "Mohammad Fahad, Rahman"]
[WhiteFideId "3409422"]
[BlackFideId "10207791"]
[WhiteElo "2504"]
[BlackElo "2323"]
[Result "1-0"]
[Round "11"]
[TimeControl "180+1"]
[Date "2022.03.08"]
[WhiteClock "0:00:47"]
[BlackClock "0:00:20"]

1. e4 {[%clk 0:02:55]}  e5 {[%clk 0:02:58]} 2. Nf3 {[%clk 0:02:54]}  Nc6 {[%clk 0:02:59]} 3. Bc4 {[%clk 0:02:54]}  Bc5 {[%clk 0:02:58]} 4. d4 {[%clk 0:02:54]}  Bxd4 {[%clk 0:02:50]} 5. Ng5 {[%clk 0:02:53]}  Nh6 {[%clk 0:02:39]} 6. O-O {[%clk 0:02:53]}  O-O {[%clk 0:02:39]} 7. a4 {[%clk 0:02:43]}  d6 {[%clk 0:02:33]} 8. Qh5 {[%clk 0:02:42]}  Qf6 {[%clk 0:02:29]} 9. Ra3 {[%clk 0:02:40]}  Bg4 {[%clk 0:02:23]} 10. Qh4 {[%clk 0:02:40]}  Ne7 {[%clk 0:02:23]} 11. h3 {[%clk 0:02:33]}  Ng6 {[%clk 0:02:22]} 12. Qg3 {[%clk 0:02:33]}  Bh5 {[%clk 0:01:32]} 13. Kh1 {[%clk 0:02:29]}  Nf4 {[%clk 0:01:30]} 14. c3 {[%clk 0:02:17]}  Bb6 {[%clk 0:01:29]} 15. a5 {[%clk 0:02:17]}  Bc5 {[%clk 0:01:20]} 16. b4 {[%clk 0:02:18]}  d5 {[%clk 0:01:21]} 17. exd5 {[%clk 0:02:15]}  Bd6 {[%clk 0:01:21]} 18. Ne4 {[%clk 0:02:15]}  Qe7 {[%clk 0:01:21]} 19. Nbd2 {[%clk 0:01:52]}  f5 {[%clk 0:01:12]} 20. Nxd6 {[%clk 0:01:52]}  cxd6 {[%clk 0:01:12]} 21. Re1 {[%clk 0:01:46]}  Qf7 {[%clk 0:01:06]} 22. Ba2 {[%clk 0:01:33]}  Ne2 {[%clk 0:00:46]} 23. Qg5 {[%clk 0:01:32]}  Rac8 {[%clk 0:00:39]} 24. c4 {[%clk 0:01:30]}  e4 {[%clk 0:00:34]} 25. c5 {[%clk 0:01:26]}  Nxc1 {[%clk 0:00:31]} 26. Rxc1 {[%clk 0:01:26]}  Bg6 {[%clk 0:00:30]} 27. Nc4 {[%clk 0:01:23]}  dxc5 {[%clk 0:00:19]} 28. Nd6 {[%clk 0:01:23]}  Qd7 {[%clk 0:00:19]} 29. Nxc8 {[%clk 0:01:23]}  Nf7 {[%clk 0:00:20]} 30. Ne7+ {[%clk 0:01:21]}  Kh8 {[%clk 0:00:20]} 31. Nxg6+ {[%clk 0:01:20]}  hxg6 {[%clk 0:00:19]} 32. Qh4+ {[%clk 0:01:20]}  Kg8 {[%clk 0:00:19]} 33. bxc5 {[%clk 0:01:21]}  g5 {[%clk 0:00:20]} 34. Qg3 {[%clk 0:01:20]}  f4 {[%clk 0:00:20]} 35. Qc3 {[%clk 0:01:18]}  f3 {[%clk 0:00:20]} 36. d6 {[%clk 0:01:15]}  Qf5 {[%clk 0:00:19]} 37. gxf3 {[%clk 0:00:59]}  Qxh3+ {[%clk 0:00:19]} 38. Kg1 {[%clk 0:00:59]}  Kh8 {[%clk 0:00:19]} 39. fxe4 {[%clk 0:00:58]}  Qg4+ {[%clk 0:00:20]} 40. Qg3 {[%clk 0:00:58]}  Qxe4 {[%clk 0:00:20]} 41. Rf3 {[%clk 0:00:47]} 1-0


[Site "https://www.chess.com"]

[Event "Titled Tuesday Blitz March 08 Early 2022"]
[White "Ambartsumova, Karina"]
[Black "Omelja, Artem"]
[WhiteFideId "4166299"]
[BlackFideId "14119846"]
[WhiteElo "2262"]
[BlackElo "2382"]
[Result "1-0"]
[Round "11"]
[TimeControl "180+1"]
[Date "2022.03.09"]
[WhiteClock "0:00:13"]
[BlackClock "0:00:01"]

1. d4 {[%clk 0:03:00]}  d5 {[%clk 0:02:55]} 2. Nf3 {[%clk 0:02:52]}  Nf6 {[%clk 0:02:53]} 3. c4 {[%clk 0:02:51]}  c6 {[%clk 0:02:53]} 4. g3 {[%clk 0:02:51]}  dxc4 {[%clk 0:02:47]} 5. Bg2 {[%clk 0:02:50]}  b5 {[%clk 0:02:45]} 6. Ne5 {[%clk 0:02:48]}  Bb7 {[%clk 0:02:44]} 7. a4 {[%clk 0:02:48]}  a6 {[%clk 0:02:43]} 8. O-O {[%clk 0:02:45]}  e6 {[%clk 0:02:38]} 9. Nc3 {[%clk 0:02:42]}  Qc7 {[%clk 0:02:26]} 10. Qc2 {[%clk 0:02:19]}  Bd6 {[%clk 0:02:14]} 11. Ne4 {[%clk 0:02:12]}  Bxe5 {[%clk 0:01:43]} 12. dxe5 {[%clk 0:02:09]}  Nxe4 {[%clk 0:01:43]} 13. Qxe4 {[%clk 0:02:07]}  Nd7 {[%clk 0:01:43]} 14. Bf4 {[%clk 0:02:08]}  Nc5 {[%clk 0:01:35]} 15. Qc2 {[%clk 0:01:56]}  Nxa4 {[%clk 0:01:29]} 16. Rfd1 {[%clk 0:01:53]}  O-O {[%clk 0:01:24]} 17. Be4 {[%clk 0:01:52]}  h6 {[%clk 0:01:15]} 18. Qc1 {[%clk 0:01:04]}  Rfd8 {[%clk 0:00:34]} 19. Bb1 {[%clk 0:00:48]}  Nc5 {[%clk 0:00:09]} 20. Rxd8+ {[%clk 0:00:41]}  Rxd8 {[%clk 0:00:08]} 21. Qc2 {[%clk 0:00:41]}  g6 {[%clk 0:00:09]} 22. h4 {[%clk 0:00:36]}  Nb3 {[%clk 0:00:08]} 23. Ra3 {[%clk 0:00:26]}  Nd4 {[%clk 0:00:08]} 24. Qe4 {[%clk 0:00:19]}  c5 {[%clk 0:00:07]} 25. Qe3 {[%clk 0:00:19]}  Qc6 {[%clk 0:00:07]} 26. f3 {[%clk 0:00:19]}  Nf5 {[%clk 0:00:05]} 27. Qc1 {[%clk 0:00:20]}  b4 {[%clk 0:00:04]} 28. Ra1 {[%clk 0:00:18]}  Qd5 {[%clk 0:00:04]} 29. Be4 {[%clk 0:00:18]}  Qd7 {[%clk 0:00:04]} 30. Qxc4 {[%clk 0:00:16]}  Bxe4 {[%clk 0:00:04]} 31. Qxe4 {[%clk 0:00:17]}  Nd4 {[%clk 0:00:04]} 32. Bxh6 {[%clk 0:00:16]}  Qb5 {[%clk 0:00:02]} 33. Kf2 {[%clk 0:00:15]}  Nf5 {[%clk 0:00:02]} 34. Bg5 {[%clk 0:00:14]}  Rd4 {[%clk 0:00:02]} 35. Qc2 {[%clk 0:00:13]}  Rc4 {[%clk 0:00:01]} 36. Qd3 {[%clk 0:00:13]}  Rd4 {[%clk 0:00:02]} 37. Qxb5 {[%clk 0:00:13]}  axb5 {[%clk 0:00:03]} 38. Bf6 {[%clk 0:00:14]}  Kh7 {[%clk 0:00:01]} 39. Ra8 {[%clk 0:00:14]}  Ng7 {[%clk 0:00:01]} 40. g4 {[%clk 0:00:14]}  c4 {[%clk 0:00:01]} 41. Ra7 {[%clk 0:00:13]} 1-0


[Site "https://www.chess.com"]

[Event "Titled Tuesday Blitz March 08 Early 2022"]
[White "Aradhya, Garg"]
[Black "Tarhan, Adar"]
[WhiteFideId "25006746"]
[BlackFideId "34544712"]
[WhiteElo "2169"]
[BlackElo "1802"]
[Result "1/2-1/2"]
[Round "11"]
[TimeControl "180+1"]
[Date "2022.03.09"]
[WhiteClock "0:00:39"]
[BlackClock "0:01:10"]

1. d4 {[%clk 0:03:00]}  d5 {[%clk 0:02:59]} 2. c4 {[%clk 0:03:01]}  c6 {[%clk 0:02:58]} 3. e3 {[%clk 0:03:00]}  Nf6 {[%clk 0:02:58]} 4. Nc3 {[%clk 0:03:00]}  g6 {[%clk 0:02:56]} 5. Nf3 {[%clk 0:03:00]}  Bg7 {[%clk 0:02:56]} 6. Be2 {[%clk 0:03:00]}  O-O {[%clk 0:02:56]} 7. O-O {[%clk 0:03:01]}  dxc4 {[%clk 0:02:56]} 8. Bxc4 {[%clk 0:02:56]}  Bg4 {[%clk 0:02:56]} 9. Be2 {[%clk 0:02:52]}  Nbd7 {[%clk 0:02:55]} 10. a4 {[%clk 0:02:52]}  Qc7 {[%clk 0:02:54]} 11. a5 {[%clk 0:02:51]}  Bxf3 {[%clk 0:02:52]} 12. Bxf3 {[%clk 0:02:51]}  e5 {[%clk 0:02:51]} 13. d5 {[%clk 0:02:52]}  cxd5 {[%clk 0:02:46]} 14. Nxd5 {[%clk 0:02:52]}  Nxd5 {[%clk 0:02:45]} 15. Qxd5 {[%clk 0:02:53]}  Nc5 {[%clk 0:02:37]} 16. Qc4 {[%clk 0:02:43]}  Rad8 {[%clk 0:02:31]} 17. Ra3 {[%clk 0:02:38]}  b6 {[%clk 0:02:29]} 18. b4 {[%clk 0:02:33]}  Ne6 {[%clk 0:02:23]} 19. Qxc7 {[%clk 0:02:32]}  Nxc7 {[%clk 0:02:24]} 20. axb6 {[%clk 0:02:32]}  axb6 {[%clk 0:02:25]} 21. Ra7 {[%clk 0:02:27]}  Nd5 {[%clk 0:02:23]} 22. Ba3 {[%clk 0:02:14]}  Rfe8 {[%clk 0:02:20]} 23. b5 {[%clk 0:01:46]}  e4 {[%clk 0:02:07]} 24. Be2 {[%clk 0:01:46]}  Rc8 {[%clk 0:02:07]} 25. Rc1 {[%clk 0:01:29]}  Rxc1+ {[%clk 0:02:05]} 26. Bxc1 {[%clk 0:01:30]}  Rc8 {[%clk 0:02:05]} 27. Ba3 {[%clk 0:01:30]}  Nc3 {[%clk 0:01:37]} 28. Bf1 {[%clk 0:01:25]}  Bf8 {[%clk 0:01:35]} 29. Bb2 {[%clk 0:01:24]}  Ne2+ {[%clk 0:01:13]} 30. Bxe2 {[%clk 0:01:17]}  Rc2 {[%clk 0:01:13]} 31. Bd4 {[%clk 0:00:53]}  Rxe2 {[%clk 0:01:12]} 32. g4 {[%clk 0:00:53]}  Re1+ {[%clk 0:01:11]} 33. Kg2 {[%clk 0:00:53]}  Rb1 {[%clk 0:01:12]} 34. Rb7 {[%clk 0:00:45]}  Rxb5 {[%clk 0:01:10]} 35. Rxb6 {[%clk 0:00:46]}  Rxb6 {[%clk 0:01:09]} 36. Bxb6 {[%clk 0:00:47]}  f5 {[%clk 0:01:09]} 37. gxf5 {[%clk 0:00:45]}  gxf5 {[%clk 0:01:09]} 38. f3 {[%clk 0:00:46]}  Kf7 {[%clk 0:01:09]} 39. fxe4 {[%clk 0:00:44]}  fxe4 {[%clk 0:01:10]} 40. h3 {[%clk 0:00:40]}  Ke6 {[%clk 0:01:10]} 41. Kf2 {[%clk 0:00:40]}  Kf5 {[%clk 0:01:11]} 42. Bd8 {[%clk 0:00:39]}  h5 {[%clk 0:01:10]} 1/2-1/2


[Site "https://www.chess.com"]

[Event "Titled Tuesday Blitz March 08 Early 2022"]
[White "Ardila, Oscar Humberto"]
[Black "Miszler, Levente"]
[WhiteFideId "4404742"]
[BlackFideId "763276"]
[WhiteElo "1966"]
[BlackElo "1966"]
[Result "0-1"]
[Round "11"]
[TimeControl "180+1"]
[Date "2022.03.09"]
[WhiteClock "0:00:01"]
[BlackClock "0:00:18"]

1. d4 {[%clk 0:02:57]}  Nf6 {[%clk 0:02:55]} 2. c4 {[%clk 0:02:57]}  e6 {[%clk 0:02:53]} 3. Nc3 {[%clk 0:02:57]}  d5 {[%clk 0:02:52]} 4. cxd5 {[%clk 0:02:56]}  exd5 {[%clk 0:02:53]} 5. Bg5 {[%clk 0:02:56]}  c6 {[%clk 0:02:52]} 6. e3 {[%clk 0:02:56]}  h6 {[%clk 0:02:50]} 7. Bh4 {[%clk 0:02:56]}  Bd6 {[%clk 0:02:50]} 8. Bd3 {[%clk 0:02:56]}  Be6 {[%clk 0:02:48]} 9. Nge2 {[%clk 0:02:55]}  Nbd7 {[%clk 0:02:49]} 10. O-O {[%clk 0:02:54]}  Qc7 {[%clk 0:02:48]} 11. Bg3 {[%clk 0:02:54]}  Bxg3 {[%clk 0:02:47]} 12. hxg3 {[%clk 0:02:54]}  O-O {[%clk 0:02:46]} 13. Nf4 {[%clk 0:02:53]}  Bg4 {[%clk 0:02:45]} 14. Qd2 {[%clk 0:02:45]}  g5 {[%clk 0:02:40]} 15. Nfe2 {[%clk 0:02:40]}  Rfe8 {[%clk 0:02:41]} 16. Rac1 {[%clk 0:02:39]}  Qd6 {[%clk 0:02:39]} 17. f4 {[%clk 0:02:24]}  Ne4 {[%clk 0:02:18]} 18. Nxe4 {[%clk 0:01:43]}  dxe4 {[%clk 0:02:17]} 19. Bc4 {[%clk 0:01:39]}  Be6 {[%clk 0:02:16]} 20. fxg5 {[%clk 0:01:31]}  hxg5 {[%clk 0:02:14]} 21. Rf2 {[%clk 0:01:12]}  Bxc4 {[%clk 0:02:09]} 22. Rxc4 {[%clk 0:01:12]}  Nb6 {[%clk 0:02:09]} 23. Rc5 {[%clk 0:01:10]}  Nd5 {[%clk 0:02:09]} 24. Rf5 {[%clk 0:01:04]}  Qg6 {[%clk 0:02:05]} 25. g4 {[%clk 0:01:03]}  Rad8 {[%clk 0:02:02]} 26. Ng3 {[%clk 0:01:03]}  Rd6 {[%clk 0:01:47]} 27. b4 {[%clk 0:01:02]}  Rf6 {[%clk 0:01:44]} 28. b5 {[%clk 0:01:00]}  Rxf5 {[%clk 0:01:44]} 29. Nxf5 {[%clk 0:00:54]}  Ne7 {[%clk 0:01:37]} 30. bxc6 {[%clk 0:00:48]}  bxc6 {[%clk 0:01:35]} 31. Qc3 {[%clk 0:00:33]}  Nxf5 {[%clk 0:01:32]} 32. gxf5 {[%clk 0:00:33]}  Qf6 {[%clk 0:01:30]} 33. g4 {[%clk 0:00:31]}  Qd6 {[%clk 0:01:30]} 34. Kg2 {[%clk 0:00:30]}  Rb8 {[%clk 0:01:21]} 35. Rxc6 {[%clk 0:00:27]}  Qd7 {[%clk 0:01:18]} 36. Rc7 {[%clk 0:00:20]}  Qa4 {[%clk 0:01:13]} 37. Rc8+ {[%clk 0:00:20]}  Rxc8 {[%clk 0:01:11]} 38. Qxc8+ {[%clk 0:00:20]}  Kg7 {[%clk 0:01:11]} 39. f6+ {[%clk 0:00:12]}  Kxf6 {[%clk 0:00:58]} 40. Qf5+ {[%clk 0:00:13]}  Ke7 {[%clk 0:00:55]} 41. Qxg5+ {[%clk 0:00:12]}  Kd7 {[%clk 0:00:50]} 42. Qf5+ {[%clk 0:00:12]}  Kd8 {[%clk 0:00:50]} 43. Qxe4 {[%clk 0:00:11]}  Qxa2+ {[%clk 0:00:49]} 44. Kf3 {[%clk 0:00:11]}  a5 {[%clk 0:00:48]} 45. Qa8+ {[%clk 0:00:11]}  Ke7 {[%clk 0:00:47]} 46. Qb7+ {[%clk 0:00:11]}  Kf8 {[%clk 0:00:47]} 47. Qb8+ {[%clk 0:00:12]}  Kg7 {[%clk 0:00:47]} 48. Qe5+ {[%clk 0:00:12]}  Kg8 {[%clk 0:00:47]} 49. Qg5+ {[%clk 0:00:12]}  Kf8 {[%clk 0:00:47]} 50. Qd8+ {[%clk 0:00:12]}  Kg7 {[%clk 0:00:48]} 51. g5 {[%clk 0:00:12]}  a4 {[%clk 0:00:45]} 52. Qf6+ {[%clk 0:00:12]}  Kg8 {[%clk 0:00:44]} 53. Qd8+ {[%clk 0:00:11]}  Kg7 {[%clk 0:00:44]} 54. Qf6+ {[%clk 0:00:11]}  Kg8 {[%clk 0:00:44]} 55. Qd8+ {[%clk 0:00:06]}  Kh7 {[%clk 0:00:44]} 56. Qf8 {[%clk 0:00:02]}  Qd5+ {[%clk 0:00:41]} 57. Ke2 {[%clk 0:00:03]}  Qc4+ {[%clk 0:00:34]} 58. Kf2 {[%clk 0:00:03]}  Qc2+ {[%clk 0:00:33]} 59. Kf3 {[%clk 0:00:03]}  Qf5+ {[%clk 0:00:33]} 60. Ke2 {[%clk 0:00:03]}  Qc2+ {[%clk 0:00:32]} 61. Kf3 {[%clk 0:00:03]}  Qd1+ {[%clk 0:00:28]} 62. Ke4 {[%clk 0:00:04]}  Qb3 {[%clk 0:00:20]} 63. Qh6+ {[%clk 0:00:03]}  Kg8 {[%clk 0:00:21]} 64. g6 {[%clk 0:00:03]}  Qe6+ {[%clk 0:00:20]} 65. Kd3 {[%clk 0:00:03]}  fxg6 {[%clk 0:00:21]} 66. e4 {[%clk 0:00:03]}  a3 {[%clk 0:00:21]} 67. d5 {[%clk 0:00:03]}  Qa6+ {[%clk 0:00:20]} 68. Ke3 {[%clk 0:00:03]}  a2 {[%clk 0:00:21]} 69. d6 {[%clk 0:00:02]}  Qxd6 {[%clk 0:00:19]} 70. Qg5 {[%clk 0:00:01]}  a1=Q {[%clk 0:00:18]} 0-1


[Site "https://www.chess.com"]

[Event "Titled Tuesday Blitz March 08 Early 2022"]
[White "Baches Garcia, Guillermo"]
[Black "Samant Aditya S"]
[WhiteFideId "2209764"]
[BlackFideId "35080580"]
[WhiteElo "2413"]
[BlackElo "1916"]
[Result "1-0"]
[Round "11"]
[TimeControl "180+1"]
[Date "2022.03.09"]
[WhiteClock "0:00:10"]
[BlackClock "0:00:01"]

1. e4 {[%clk 0:03:00]}  c5 {[%clk 0:03:00]} 2. Nf3 {[%clk 0:03:01]}  d6 {[%clk 0:03:00]} 3. d4 {[%clk 0:03:01]}  cxd4 {[%clk 0:03:01]} 4. Qxd4 {[%clk 0:03:02]}  Nf6 {[%clk 0:03:02]} 5. Bb5+ {[%clk 0:02:59]}  Nc6 {[%clk 0:02:55]} 6. Qd3 {[%clk 0:02:59]}  Bd7 {[%clk 0:02:51]} 7. c4 {[%clk 0:02:58]}  a6 {[%clk 0:02:43]} 8. Bxc6 {[%clk 0:02:58]}  Bxc6 {[%clk 0:02:44]} 9. Nc3 {[%clk 0:02:58]}  e6 {[%clk 0:02:45]} 10. Bf4 {[%clk 0:02:51]}  Be7 {[%clk 0:02:45]} 11. Rd1 {[%clk 0:02:51]}  Qa5 {[%clk 0:02:25]} 12. O-O {[%clk 0:02:44]}  O-O {[%clk 0:02:24]} 13. Rfe1 {[%clk 0:02:31]}  Rfd8 {[%clk 0:02:21]} 14. Bd2 {[%clk 0:02:21]}  Qb6 {[%clk 0:02:17]} 15. b3 {[%clk 0:02:02]}  Nd7 {[%clk 0:02:15]} 16. Be3 {[%clk 0:01:55]}  Qc7 {[%clk 0:02:13]} 17. Nd4 {[%clk 0:01:52]}  Nc5 {[%clk 0:02:09]} 18. Qc2 {[%clk 0:01:51]}  Be8 {[%clk 0:02:08]} 19. h3 {[%clk 0:01:41]}  Rac8 {[%clk 0:02:08]} 20. Rc1 {[%clk 0:01:39]}  Qb8 {[%clk 0:02:08]} 21. Red1 {[%clk 0:01:39]}  b5 {[%clk 0:02:07]} 22. b4 {[%clk 0:01:28]}  Nb7 {[%clk 0:01:31]} 23. cxb5 {[%clk 0:01:24]}  axb5 {[%clk 0:01:32]} 24. Qd3 {[%clk 0:01:20]}  d5 {[%clk 0:01:09]} 25. exd5 {[%clk 0:01:06]}  Bxb4 {[%clk 0:01:02]} 26. dxe6 {[%clk 0:01:00]}  fxe6 {[%clk 0:01:02]} 27. Ncxb5 {[%clk 0:00:49]}  Rxc1 {[%clk 0:00:21]} 28. Rxc1 {[%clk 0:00:45]}  Bf8 {[%clk 0:00:22]} 29. Qc4 {[%clk 0:00:37]}  Nc5 {[%clk 0:00:18]} 30. a4 {[%clk 0:00:22]}  Kh8 {[%clk 0:00:11]} 31. Nf3 {[%clk 0:00:18]}  Nxa4 {[%clk 0:00:07]} 32. Qxa4 {[%clk 0:00:17]}  Bxb5 {[%clk 0:00:07]} 33. Qb3 {[%clk 0:00:16]}  Be8 {[%clk 0:00:04]} 34. Qxe6 {[%clk 0:00:15]}  Bd7 {[%clk 0:00:05]} 35. Qf7 {[%clk 0:00:14]}  Qd6 {[%clk 0:00:03]} 36. Ng5 {[%clk 0:00:11]}  h6 {[%clk 0:00:01]} 37. Qh5 {[%clk 0:00:10]} 1-0


[Site "https://www.chess.com"]